bitfinex-derivatives/quotes_ETHF0:USTF0_20250217
["timestamp","ask_amount","ask_price","bid_price","bid_amount"]
[1739806199226,0.00532226,2820.5,2820.1,4.214]
[1739806199626,0.00532226,2820.5,2820.4,0.70901]
[1739806202033,1.0036,2821.2,2821.1,0.70884]
[1739806202234,1.71241,2821.2,2821.1,0.70884]
[1739806202435,0.70884,2821.1,2820.7,4.98014]
[1739806202631,4.26645889,2821.2,2820.7,4.98014]
[1739806202939,4.26645889,2821.2,2821.1,0.70884]
[1739806203436,4.97529889,2821.2,2821.1,0.70884]
[1739806203637,3.26285889,2821.5,2820.8,0.9791]
[1739806203936,3.97160889,2821.5,2821.3,0.70878]
[1739806204125,0.70876,2821.4,2821.3,0.70878]
[1739806204331,3.26285889,2821.5,2821.3,0.70878]
[1739806204530,0.70881,2821.3,2820.8,0.9791]
[1739806204928,3.26285889,2821.5,2820.8,2.75136]
[1739806205138,3.97161889,2821.5,2820.9,2.7271]
[1739806205332,0.7088,2821.3,2821.1,0.70882]
[1739806205838,3.26285889,2821.2,2820.9,0.9549]
[1739806206029,0.70886,2821.1,2820.9,0.9549]
[1739806206225,4.93758889,2821.2,2820.9,0.9549]
[1739806206636,4.22875889,2821.2,2821.1,0.70884]
[1739806207037,3.2078,2821.3,2820.9,0.9549]
[1739806207241,3.2078,2821.3,2821.2,0.70881]
[1739806207734,0.997,2821.6,2821.4,0.70875]
[1739806208035,0.997,2821.6,2821.1,3.2078]
[1739806208233,3.97160889,2821.5,2821.3,0.70878]
[1739806208441,3.97160889,2821.5,2821.1,3.2078]
[1739806208739,0.70886,2821.0,2820.9,0.9549]
[1739806209031,3.26285889,2821.2,2820.4,3.2078]
[1739806209237,0.70897,2820.6,2820.4,3.2078]
[1739806209830,4.96875889,2820.9,2820.6,0.70896]
[1739806210033,6.75967889,2821.2,2820.9,0.70887]
[1739806210239,6.75967889,2821.2,2821.0,0.70886]
[1739806210542,0.70886,2821.1,2820.8,0.70891]
[1739806210733,0.70886,2821.1,2820.7,3.2078]
[1739806210930,0.70886,2821.1,2820.4,2.788]
[1739806210931,0.9678,2821.5,2821.0,3.2078]
[1739806211131,3.2078,2821.6,2821.5,0.70874]
[1739806211442,0.70871,2821.7,2821.3,3.2078]
[1739806211634,0.70871,2821.7,2821.5,0.70872]
[1739806212034,3.97153889,2821.8,2821.6,0.7087]
[1739806212535,3.26285889,2821.8,2821.7,0.70869]
[1739806212731,3.26285889,2821.8,2821.6,0.7087]
[1739806212732,3.97152889,2821.8,2821.6,0.7087]
[1739806212934,0.70869,2821.7,2821.6,0.7087]
[1739806213332,3.97153889,2821.8,2821.6,0.70871]
[1739806213542,0.70869,2821.7,2821.4,0.00532226]
[1739806213840,3.97159889,2821.5,2821.4,0.00532226]
[1739806214037,3.97159889,2821.5,2820.7,1.77234]
[1739806214038,3.26285889,2821.5,2820.8,3.2078]
[1739806214229,3.26285889,2821.5,2821.0,1.006]
[1739806214429,0.70884,2821.1,2821.0,1.006]
[1739806214836,3.26285889,2821.2,2820.6,1.006]
[1739806215040,5.9948,2821.3,2820.4,3.2078]
[1739806215041,6.47065889,2820.9,2820.4,3.2078]
[1739806215233,3.26285889,2820.6,2820.5,0.70899]
[1739806215638,0.70892,2820.8,2820.5,0.70899]
[1739806215843,3.97175889,2820.9,2820.6,0.70895]
[1739806216148,3.26285889,2820.9,2820.4,3.21312226]
[1739806216836,3.26285889,2820.9,2820.5,0.70897]
[1739806217037,0.70895,2820.7,2820.5,0.70897]
[1739806217238,0.70897,2820.6,2820.4,3.21312226]
[1739806217440,0.70893,2820.8,2820.5,0.70898]
[1739806217635,3.26285889,2820.9,2820.5,0.70898]
[1739806217939,0.70899,2820.6,2820.4,3.21312226]
[1739806218339,3.26285889,2820.9,2820.4,3.21312226]
[1739806218538,3.97175889,2820.9,2820.6,0.70894]
[1739806218734,3.26285889,2820.9,2820.4,3.21312226]
[1739806218939,0.70896,2820.7,2820.5,0.70898]
[1739806219245,0.70897,2820.6,2820.4,3.21312226]
[1739806219541,3.26285889,2820.9,2820.4,3.21312226]
[1739806219739,6.47065889,2820.9,2820.4,3.21312226]
[1739806220044,6.47065889,2820.9,2820.4,3.92213226]
[1739806220045,0.70899,2820.5,2820.4,3.92213226]
[1739806220744,6.47065889,2820.9,2820.4,3.21312226]
[1739806221639,0.9836,2821.1,2820.9,0.70886]
[1739806221837,0.00532226,2821.2,2821.1,0.70884]
[1739806222445,0.00532226,2821.2,2821.1,3.91664]
[1739806223340,0.00532226,2821.2,2821.1,3.2078]
[1739806223541,3.26818115,2821.2,2820.8,0.9303]
[1739806223849,0.70895,2820.7,2820.5,3.91678]
[1739806224045,0.70896,2820.7,2820.5,3.91678]
[1739806224250,0.70896,2820.6,2820.5,3.2078]
[1739806224541,1.0112,2820.8,2820.5,3.91679]
[1739806224746,1.0112,2820.8,2820.5,3.2078]
[1739806225147,0.70896,2820.7,2820.5,3.91678]
[1739806225448,0.70892,2820.8,2820.7,0.70893]
[1739806225646,0.70892,2820.8,2820.5,3.2078]
[1739806225647,1.018,2821.1,2820.5,3.2078]
[1739806225951,3.26818115,2821.2,2820.5,3.2078]
[1739806226344,3.26818115,2821.2,2820.6,0.9805]
[1739806226547,0.70896,2820.6,2820.5,3.2078]
[1739806226951,0.70896,2820.7,2820.5,3.91678]
[1739806227146,3.26285889,2820.9,2820.5,3.2078]
[1739806227147,0.70896,2820.6,2820.5,3.2078]
[1739806228152,0.70899,2820.5,2820.4,0.00532226]
[1739806228351,1.63049,2820.5,2820.4,0.00532226]
[1739806228652,5.6536,2820.5,2819.9,0.00118288]
[1739806228951,3.91692,2820.0,2819.9,0.00118288]
[1739806229151,6.70092,2820.0,2819.9,0.00118288]
[1739806230249,6.70092,2820.0,2819.7,0.00532226]
[1739806230250,11.9918,2820.0,2819.7,0.00532226]
[1739806230447,3.97202889,2819.8,2819.7,0.00532226]
[1739806230752,3.97202889,2819.8,2819.1,3.2078]
[1739806230753,4.09321726,2819.8,2819.1,3.2078]
[1739806231051,3.2078,2819.6,2818.9,0.70938]
[1739806231242,0.70944,2818.8,2818.3,0.9352]
[1739806231447,2.784,2819.5,2818.1,3.91738]
[1739806231448,4.09321726,2818.7,2818.2,0.9241]
[1739806231750,4.80275726,2818.3,2818.2,0.9241]
[1739806231947,4.09321726,2818.3,2818.2,0.92942226]
[1739806232147,3.2078,2818.5,2818.2,0.92942226]
[1739806232344,3.9173,2818.5,2818.2,0.92942226]
[1739806232547,3.2078,2818.5,2818.2,0.92942226]
[1739806232744,4.80275726,2818.3,2818.2,0.92942226]
[1739806233057,4.80275726,2818.3,2818.2,0.00532226]
[1739806234056,0.70972,2817.6,2817.0,3.2078]
[1739806234244,6.87721726,2817.6,2817.0,3.2078]
[1739806234454,4.09321726,2818.2,2817.3,3.2078]
[1739806234651,4.09321726,2818.2,2817.7,3.91748]
[1739806234955,7.30101726,2818.5,2817.7,3.2078]
[1739806235151,3.2078,2818.5,2818.2,0.70955]
[1739806235551,3.2078,2818.5,2818.0,3.2078]
[1739806235752,7.30101726,2818.5,2818.0,3.2078]
[1739806236255,2.78932226,2818.7,2818.3,0.70953]
[1739806236556,0.00532226,2818.7,2818.3,3.91733]
[1739806236758,0.00532226,2818.7,2818.0,3.2078]
[1739806237058,0.00532226,2818.7,2818.3,0.70954]
[1739806237259,0.00532226,2818.7,2818.4,0.7095]
[1739806237454,0.00532226,2818.7,2818.0,3.2078]
[1739806238049,0.70947,2818.6,2818.0,3.2078]
[1739806238251,4.09321726,2818.5,2818.0,3.2078]
[1739806238457,0.70963,2818.0,2817.7,0.00532226]
[1739806238652,0.70965,2817.9,2817.7,0.00532226]
[1739806239050,5.06091726,2818.2,2817.7,0.00532226]
[1739806239254,0.70967,2817.8,2817.7,0.00532226]
[1739806240360,6.9595,2817.8,2816.8,1.64631]
[1739806240658,0.70988,2817.0,2816.8,0.9364]
[1739806240851,3.2078,2817.3,2816.8,0.9364]
[1739806241057,4.09321726,2817.4,2816.8,0.9364]
[1739806241654,0.00532226,2817.4,2816.8,4.14952226]
[1739806242066,0.00532226,2817.4,2817.0,0.70986]
[1739806242267,0.00532226,2817.4,2816.8,4.14952226]
[1739806242566,0.00532226,2817.4,2817.2,0.70981]
[1739806243173,0.71510226,2817.4,2817.1,0.70984]
[1739806243466,0.00532226,2817.4,2816.8,3.21312226]
[1739806243674,4.09853952,2817.4,2816.8,0.00532226]
[1739806243873,0.70983,2817.2,2816.8,0.00532226]
[1739806244074,0.70983,2817.2,2816.8,0.71523226]
[1739806244274,4.09853952,2817.4,2816.8,0.00532226]
[1739806244676,4.09853952,2817.4,2816.8,3.92303226]
[1739806244974,0.00532226,2817.4,2816.8,3.21312226]
[1739806245374,0.00532226,2817.4,2816.9,0.70988]
[1739806245872,0.70983,2817.2,2816.9,0.70988]
[1739806246072,0.00532226,2817.4,2816.8,3.21312226]
[1739806246276,0.70982,2817.3,2817.0,0.70986]
[1739806246460,0.70984,2817.2,2816.8,3.21312226]
[1739806246665,0.70979,2817.3,2817.0,0.70986]
[1739806246866,0.00532226,2817.4,2816.9,0.70989]
[1739806247168,0.00532226,2817.4,2816.8,3.21312226]
[1739806247372,0.70985,2817.1,2816.8,3.21312226]
[1739806247668,0.00532226,2817.4,2816.8,3.21312226]
[1739806247867,0.7099,2816.9,2816.8,0.00532226]
[1739806248872,4.09321726,2817.1,2816.8,0.00532226]
[1739806249076,0.7099,2816.9,2816.8,0.00532226]
[1739806250170,7.0651,2816.9,2816.8,2.26e-06]
[1739806250369,1.77495,2816.6,2815.7,0.9628]
[1739806250572,4.09321726,2816.2,2815.7,0.9628]
[1739806250780,3.2078,2816.4,2815.8,0.71015]
[1739806250974,3.1382,2816.9,2815.9,3.2078]
[1739806251173,7.30101726,2816.8,2816.0,1.0078]
[1739806251376,0.70995,2816.7,2816.4,0.71001]
[1739806251577,7.30101726,2816.8,2816.2,3.2078]
[1739806251771,0.71005,2816.3,2816.2,3.2078]
[1739806252073,0.71007,2816.2,2816.1,0.0035482]
[1739806252274,4.80328726,2816.2,2816.1,0.0035482]
[1739806253879,10.80328726,2816.2,2816.1,0.0035482]
[1739806254780,11.15848726,2816.2,2816.1,0.0035482]
[1739806255174,5.15848726,2816.2,2816.1,0.0035482]
[1739806255480,7.94248726,2816.2,2816.1,0.0035482]
[1739806255970,5.15848726,2816.2,2816.1,0.0035482]
[1739806256268,13.94148726,2816.2,2816.1,0.0035482]
[1739806256472,13.94148726,2816.2,2815.3,0.9628]
[1739806256473,13.23141726,2816.2,2815.3,0.9628]
[1739806256670,0.71024,2815.6,2815.3,0.9628]
[1739806256868,4.09321726,2815.7,2815.3,0.9628]
[1739806257070,0.71027,2815.4,2815.3,0.9628]
[1739806257776,0.00532226,2815.6,2815.3,0.9628]
[1739806257974,0.00532226,2815.6,2815.3,1.67308]
[1739806258176,0.00532226,2815.6,2815.3,4.1706]
[1739806258480,0.00532226,2815.6,2815.5,0.71025]
[1739806258679,0.00532226,2815.6,2815.3,4.1706]
[1739806258680,0.00532226,2815.6,2815.4,0.71027]
[1739806258982,0.00532226,2815.6,2815.5,0.71025]
[1739806259279,3.2078,2815.9,2815.3,4.1706]
[1739806259472,7.30101726,2816.3,2815.6,3.2078]
[1739806259676,7.30101726,2816.3,2815.7,1.0115]
[1739806259876,0.71017,2815.8,2815.7,1.0115]
[1739806260076,0.71017,2815.8,2815.3,5.1187]
[1739806260077,4.09321726,2816.0,2815.4,0.71027]
[1739806260274,0.71027,2815.4,2815.3,1.9109]
[1739806260478,4.09321726,2815.7,2815.3,2.62119]
[1739806260682,0.71023,2815.6,2815.4,0.00532226]
[1739806260883,0.00532226,2815.9,2815.5,4.98343]
[1739806261080,0.71021,2815.7,2815.4,0.00532226]
[1739806261276,0.00532226,2815.9,2815.5,3.2078]
[1739806261982,0.00532226,2815.9,2815.8,0.71017]
[1739806262186,0.00532226,2815.9,2815.5,3.2078]
[1739806262373,0.00532226,2815.9,2815.8,3.91797]
[1739806263982,22.462,2816.7,2816.4,0.71001]
[1739806264185,23.17195,2816.7,2816.4,0.71001]
[1739806264488,4.09321726,2816.6,2816.1,0.9754]
[1739806264687,3.27342947,2816.3,2816.1,0.9754]
[1739806264880,3.27342947,2816.6,2816.1,0.9754]
[1739806265077,0.00532226,2816.5,2816.1,0.9754]
[1739806265278,0.71007,2816.2,2816.1,0.9754]
[1739806265483,3.27342947,2816.3,2815.8,3.2078]
[1739806265484,0.71015,2815.9,2815.8,3.2078]
[1739806265681,3.27342947,2816.0,2815.7,0.9441]
[1739806265982,0.71017,2815.8,2815.7,0.9441]
[1739806267385,0.71017,2815.8,2815.4,0.00532226]
[1739806267386,0.71025,2815.5,2815.4,0.00532226]
[1739806269286,6.28851361,2815.5,2814.4,3.2078]
[1739806269581,4.10362691,2814.8,2814.1,1.0089]
[1739806269789,6.88562691,2814.8,2814.1,1.0089]
[1739806270082,0.71052,2814.5,2814.1,1.0089]
[1739806270285,3.2078,2814.3,2813.7,0.9974]
[1739806270477,0.71059,2814.2,2814.1,0.00532226]
[1739806270678,0.71057,2814.3,2814.1,0.00532226]
[1739806271082,4.10362691,2814.5,2814.1,0.00532226]
[1739806271582,4.81414691,2814.5,2814.1,0.00532226]
[1739806271782,3.21312226,2814.6,2814.1,0.00532226]
[1739806271991,8.02200691,2814.2,2813.1,4.1937]
[1739806272282,8.02200691,2814.2,2812.6,0.9434]
[1739806272283,0.71096,2812.7,2812.6,0.9434]
[1739806272474,4.10362691,2812.7,2812.3,1.25589969]
[1739806272882,4.10362691,2812.4,2811.4,3.2078]
[1739806273080,4.10362691,2812.1,2811.4,3.2078]
[1739806273479,0.00533191,2812.2,2811.4,3.2078]
[1739806273677,0.00533191,2812.2,2811.3,4.1512]
[1739806273880,4.10362691,2811.8,2811.3,0.9434]
[1739806274087,3.2078,2811.7,2811.3,0.9434]
[1739806274276,8.02263691,2811.7,2811.3,0.9434]
[1739806274481,8.02263691,2811.7,2811.1,12.9913373]
[1739806274482,0.71133,2811.2,2811.1,12.9913373]
[1739806274680,3.49333,2811.2,2811.1,11.4639873]
[1739806274884,3.2078,2811.4,2811.1,11.4639873]
[1739806275082,8.20725382,2811.2,2810.4,22.1436436]
[1739806275286,0.71179,2809.4,2809.3,26.13939999]
[1739806275590,3.2078,2809.6,2809.3,26.13939999]
[1739806275779,3.2078,2809.9,2809.3,26.13939999]
[1739806275980,0.00533191,2809.6,2809.3,26.13939999]
[1739806276184,4.10362691,2809.4,2809.3,26.13939999]
[1739806276493,4.10362691,2809.4,2808.2,3.2078]
[1739806276494,0.71191,2809.0,2808.8,13.72577331]
[1739806276790,3.2078,2809.3,2808.8,13.72577331]
[1739806276990,3.2078,2808.9,2808.8,13.72577331]
[1739806277187,10.45142692,2809.5,2808.8,13.72577331]
[1739806277385,10.09542691,2809.5,2808.8,16.93357331]
[1739806277580,0.00533191,2809.6,2809.1,3.2078]
[1739806277781,0.00533191,2809.6,2809.4,3.2078]
[1739806277982,0.499,2809.5,2808.9,3.2078]
[1739806278286,0.00533191,2809.6,2808.8,13.72577331]
[1739806278488,0.00533191,2809.6,2809.3,3.2078]
[1739806278991,1.91e-06,2809.6,2809.5,0.71176]
[1739806279489,3.2078,2810.9,2809.5,6.0]
[1739806279687,3.2078,2810.9,2810.3,0.71156]
[1739806279887,3.2078,2810.9,2810.1,3.2078]
[1739806280191,3.2078,2810.9,2810.2,0.9471]
[1739806280387,1.9526,2812.2,2810.2,0.9471]
[1739806280690,3.2078,2811.7,2810.7,3.2078]
[1739806280884,3.2078,2811.7,2810.3,1.9821]
[1739806280885,6.86436782,2810.8,2810.3,1.9821]
[1739806281191,6.86436782,2810.8,2810.4,3.2078]
[1739806281395,3.2078,2810.5,2810.2,0.9471]
[1739806281587,3.2078,2810.5,2810.3,0.00533191]
[1739806282088,4.73019861,2810.4,2810.3,0.00533191]
[1739806282289,4.73019861,2810.0,2809.4,0.9976]
[1739806282591,3.2078,2809.5,2808.8,3.2078]
[1739806282995,3.2078,2809.8,2808.8,3.2078]
[1739806283186,3.2078,2810.1,2808.8,3.2078]
[1739806283387,3.2078,2810.1,2809.1,3.2078]
[1739806283690,0.00533191,2809.6,2809.3,0.71179]
[1739806283989,0.00533191,2809.6,2809.5,0.71176]
[1739806284195,3.2078,2811.3,2809.6,1.77935]
[1739806284391,2.72009526,2810.3,2810.2,0.71159]
[1739806284691,2.5996429,2810.5,2810.4,0.71153]
[1739806284898,5.44019053,2810.7,2810.6,0.71148]
[1739806285098,6.80023816,2810.9,2810.6,0.71148]
[1739806285099,4.58557782,2810.8,2810.7,0.71146]
[1739806285290,3.30219941,2810.9,2810.8,0.71143]
[1739806285490,3.30753132,2810.9,2810.8,6.71143]
[1739806285696,1.59196132,2810.9,2810.8,6.71143]
[1739806286198,7.43064612,2811.2,2811.1,0.71136]
[1739806286389,7.43064612,2811.2,2811.1,3.91916]
[1739806286698,6.65208612,2811.2,2811.1,9.91916]
[1739806286893,4.69946612,2811.2,2811.1,9.91916]
[1739806287094,2.38501612,2811.2,2811.1,9.91916]
[1739806287294,3.2078,2811.9,2810.8,3.2078]
[1739806287502,0.00533191,2811.4,2811.1,0.71134]
[1739806288001,0.00533191,2811.4,2810.9,3.147]
[1739806288194,0.00533191,2811.4,2811.3,0.71131]
[1739806288399,0.00533191,2811.4,2811.1,3.2078]
[1739806288995,0.84650358,2811.2,2810.4,0.00533191]
[1739806289304,0.85183549,2811.4,2810.6,3.2078]
[1739806289495,0.00533191,2811.4,2811.0,3.2078]
[1739806290194,0.00533191,2811.4,2810.7,3.15]
[1739806290195,0.00533191,2811.4,2811.3,3.91911]
[1739806290397,0.00533191,2811.4,2811.3,6.3538]
[1739806290594,0.00533191,2811.4,2811.3,13.06511]
[1739806290795,0.00533191,2811.4,2810.8,19.717]
[1739806290796,0.00533191,2811.4,2811.0,3.2078]
[1739806290998,0.84650358,2811.3,2811.0,3.146]
[1739806291300,0.84650358,2811.3,2810.7,3.146]
[1739806291301,0.84650358,2811.1,2810.7,3.146]
[1739806291498,0.84650358,2810.9,2810.7,3.146]
[1739806291706,0.84650358,2811.0,2810.7,3.146]
[1739806291998,0.84650358,2811.0,2810.8,0.71143]
[1739806292200,0.84650358,2811.0,2810.7,3.85744]
[1739806292393,0.84650358,2810.8,2810.4,0.00533191]
[1739806292594,0.84650358,2810.5,2810.4,0.00533191]
[1739806294206,1.55801358,2810.5,2810.4,0.00533191]
[1739806295110,0.84650358,2810.5,2810.4,0.00533191]
[1739806295400,3.2078,2810.7,2810.4,0.00533191]
[1739806295604,3.2078,2811.0,2810.4,3.13333191]
[1739806295809,4.05430358,2811.0,2810.6,0.71148]
[1739806296006,4.05430358,2811.0,2810.4,0.00533191]
[1739806296309,0.8934,2811.3,2810.4,0.00533191]
[1739806296310,0.84650358,2810.7,2810.4,0.00533191]
[1739806296505,0.84650358,2811.0,2809.9,21.92225]
[1739806296808,0.84650358,2811.0,2810.7,0.71146]
[1739806296809,3.2078,2810.8,2810.7,0.71146]
[1739806297103,3.2078,2810.8,2810.7,3.84446]
[1739806297596,3.2078,2811.1,2810.7,9.133]
[1739806297800,3.2078,2811.1,2811.0,0.71138]
[1739806299004,0.00533191,2811.4,2811.3,0.71131]
[1739806299305,0.00533191,2811.4,2811.3,3.83131]
[1739806299495,0.00533191,2811.4,2811.3,9.83131]
[1739806299898,8.83669861,2812.5,2811.5,1.77814]
[1739806300105,0.84650358,2812.3,2812.2,0.71108]
[1739806300299,4.05430358,2812.5,2812.4,0.71103]
[1739806300508,4.05430358,2812.5,2812.1,3.115]
[1739806300809,3.2078,2812.2,2812.1,3.8261]
[1739806301006,3.2078,2812.5,2812.4,0.71103]
[1739806301907,0.84650358,2812.5,2812.3,3.109]
[1739806302200,0.84650358,2812.5,2812.3,3.82005]
[1739806302402,0.84650358,2812.5,2812.4,0.71103]
[1739806302600,0.00533191,2812.6,2812.5,0.711]
[1739806305100,4.05963549,2812.6,2812.1,0.71109]
[1739806305300,3.2078,2812.3,2812.2,3.094]
[1739806305506,0.84650358,2812.2,2812.0,0.00533191]
[1739806305710,0.84650358,2812.1,2812.0,0.00533191]
[1739806306703,1.55762358,2812.1,2811.2,19.718]
[1739806306905,0.84650358,2811.4,2811.3,3.093]
[1739806307912,0.84650358,2811.4,2811.1,0.00533191]
[1739806308109,3.2078,2811.2,2811.1,0.00533191]
[1739806308308,3.2078,2811.2,2811.1,0.71669191]
[1739806308813,3.2078,2811.2,2811.1,0.00533191]
[1739806309006,4.05430358,2811.2,2811.1,0.00533191]
[1739806309211,4.05430358,2811.2,2810.4,3.79852]
[1739806309412,3.2078,2810.5,2810.4,3.085]
[1739806309708,3.2078,2810.5,2809.4,19.715]
[1739806309709,4.05430358,2810.5,2809.4,19.715]
[1739806309913,4.73019861,2811.0,2809.4,19.715]
[1739806309914,3.2078,2810.2,2809.9,3.088]
[1739806310110,4.05430358,2810.0,2809.9,3.088]
[1739806310307,4.05430358,2810.0,2809.5,0.71176]
[1739806310516,0.84650358,2809.9,2809.6,3.086]
[1739806310716,3.2078,2809.7,2809.6,3.79774]
[1739806311214,4.05430358,2809.7,2809.5,3.083]
[1739806311416,0.84650358,2809.6,2809.5,3.083]
[1739806312606,0.84650358,2809.6,2807.4,5.62533671]
[1739806312607,0.84650358,2809.6,2807.7,1.78051]
[1739806312920,3.2078,2808.7,2808.6,0.71199]
[1739806313115,0.84650358,2808.6,2808.0,3.073]
[1739806313322,3.2078,2808.4,2807.9,3.2078]
[1739806313614,4.05430358,2808.0,2807.2,0.15690708]
[1739806313822,0.84650358,2807.4,2807.2,0.15690708]
[1739806314412,0.9688,2808.3,2807.3,3.097]
[1739806314413,0.8862,2808.1,2807.3,3.097]
[1739806314618,4.1766,2808.3,2807.4,1.78074]
[1739806314619,0.84650358,2808.3,2807.4,1.78074]
[1739806314818,0.00533191,2808.6,2807.3,13.70697937]
[1739806314819,3.2078,2808.4,2807.3,13.70697937]
[1739806315116,3.2078,2808.1,2807.3,3.094]
[1739806315321,0.84650358,2807.7,2807.3,3.094]
[1739806315514,0.84650358,2807.9,2807.7,0.71221]
[1739806315815,0.84650358,2808.0,2807.9,0.71217]
[1739806316008,3.2078,2808.1,2808.0,0.71214]
[1739806316213,4.05430358,2808.1,2807.2,0.15690708]
[1739806316412,3.2078,2807.7,2807.2,0.15690708]
[1739806316612,4.05430358,2807.7,2807.2,0.15690708]
[1739806316814,5.51196626,2808.3,2807.3,1.78081]
[1739806317013,5.51196626,2808.3,2807.4,3.2078]
[1739806317319,4.05430358,2808.1,2807.5,3.086]
[1739806317524,4.05430358,2808.1,2808.0,0.71214]
[1739806317823,3.2078,2808.1,2808.0,0.71214]
[1739806318121,4.05430358,2808.1,2807.8,3.08]
[1739806318419,0.84650358,2807.9,2807.8,3.79219]
[1739806318626,0.84650358,2808.0,2807.8,3.08]
[1739806318819,0.84650358,2808.0,2807.9,0.71217]
[1739806319021,3.2078,2808.1,2807.9,0.71217]
[1739806319314,4.05430358,2808.1,2807.8,3.08]
[1739806319515,3.2078,2808.1,2808.0,0.71214]
[1739806319724,5.51196626,2808.3,2807.8,3.08]
[1739806319919,6.35846984,2808.3,2807.8,3.08]
[1739806320222,0.84650358,2808.3,2807.8,3.08]
[1739806320408,0.84650358,2808.0,2807.8,3.08]
[1739806320609,0.84650358,2808.3,2808.2,0.71209]
[1739806320813,0.84650358,2808.3,2807.8,3.08491493]
[1739806320814,0.84650358,2808.1,2807.8,3.08491493]
[1739806321013,0.84650358,2807.9,2807.8,0.00491493]
[1739806321423,0.84650358,2807.9,2807.5,0.71226]
[1739806321723,0.84650358,2807.6,2807.5,3.061]
[1739806321926,4.05430358,2807.7,2807.6,0.71224]
[1739806322115,0.84650358,2807.6,2807.2,0.1558554]
[1739806322317,1.55882358,2807.3,2807.2,0.1558554]
[1739806322620,1.55882358,2807.3,2804.5,0.17962291]
[1739806322621,0.71287,2805.2,2804.5,0.17962291]
[1739806322922,3.2078,2804.8,2804.5,0.17962291]
[1739806323717,3.2078,2804.8,2803.9,6.3888]
[1739806323718,3.2078,2804.8,2803.9,3.2078]
[1739806323917,3.2078,2804.8,2803.8,0.29085434]
[1739806323918,3.2078,2804.8,2804.6,0.03302099]
[1739806324427,3.2078,2804.8,2803.4,3.201]
[1739806324635,3.2078,2804.8,2804.7,0.06604198]
[1739806325124,3.2131416,2805.1,2804.7,3.27704198]
[1739806325512,3.2131416,2805.1,2804.9,0.06604198]
[1739806326228,3.2131416,2805.1,2805.0,0.08930415]
[1739806326625,3.2131416,2805.1,2805.0,0.11256632]
[1739806327114,3.2131416,2805.1,2805.0,0.13582849]
[1739806327625,3.2131416,2805.1,2805.0,0.84872849]
[1739806327928,3.2131416,2805.1,2805.0,0.15909066]
[1739806328323,3.2131416,2805.1,2805.0,0.18235283]
[1739806329029,3.2131416,2805.1,2805.0,0.205615]
[1739806329221,9.2131416,2805.1,2803.4,3.217]
[1739806329421,9.2131416,2805.1,2802.5,20.83743556]
[1739806329422,3.2078,2803.5,2803.2,3.217]
[1739806329621,3.2078,2803.5,2803.3,0.02326217]
[1739806330032,0.00535141,2803.7,2803.4,3.214]
[1739806330234,3.2078,2804.1,2803.4,3.214]
[1739806330235,3.2078,2804.4,2803.5,3.25432434]
[1739806330528,3.2078,2804.1,2803.8,0.7132]
[1739806330825,3.2078,2804.3,2804.2,0.71309]
[1739806331029,3.2078,2804.6,2803.9,0.06978651]
[1739806331329,3.2078,2804.3,2804.1,0.71312]
[1739806331626,3.2078,2804.3,2804.2,0.09304868]
[1739806331825,0.00535141,2804.5,2804.4,0.71306]
[1739806332032,0.00535141,2804.5,2804.4,0.8076852]
[1739806332331,0.00535141,2804.5,2804.4,4.0326852]
[1739806332826,3.2078,2804.9,2804.4,0.0946252]
[1739806333022,3.2078,2804.5,2804.0,0.00535141]
[1739806333327,5.64019861,2805.6,2804.0,0.00535141]
[1739806333328,3.2078,2804.1,2804.0,0.00535141]
[1739806333527,3.2078,2804.1,2804.0,3.95251141]
[1739806333835,0.00535141,2804.3,2804.0,3.23935141]
[1739806334021,0.00535141,2804.3,2804.2,0.71311]
[1739806334724,3.2078,2804.8,2804.2,3.247]
[1739806335129,3.2078,2804.8,2804.0,0.00535141]
[1739806335328,3.2078,2804.3,2804.0,0.00535141]
[1739806335633,3.2078,2805.0,2804.0,0.00535141]
[1739806335821,0.00535141,2804.4,2804.3,0.71308]
[1739806336021,0.00535141,2804.4,2804.3,3.97808]
[1739806336221,3.21315141,2804.4,2804.0,0.00535141]
[1739806336525,3.2078,2804.1,2804.0,0.00535141]
[1739806337024,3.21315141,2804.4,2804.3,0.71308]
[1739806337231,3.21315141,2804.4,2804.0,0.00535141]
[1739806337529,0.00535141,2804.4,2804.3,0.71308]
[1739806337824,0.00535141,2804.4,2804.3,4.04708]
[1739806338723,0.00535141,2804.4,2804.3,10.04708]
[1739806338925,3.2078,2805.3,2804.3,9.334]
[1739806339127,3.383,2805.2,2804.0,0.00535141]
[1739806339335,3.2078,2804.1,2802.5,0.0074319]
[1739806339635,3.2078,2802.9,2802.8,0.71345]
[1739806340137,3.2078,2802.9,2802.8,4.12345]
[1739806340323,3.2078,2802.9,2802.8,3.41]
[1739806340526,3.2078,2802.9,2802.8,3.411]
[1739806340722,3.2078,2802.9,2802.8,4.15766813]
[1739806341131,3.2078,2802.9,2802.8,4.16266813]
[1739806341330,0.00535141,2803.1,2803.0,0.71341]
[1739806341732,3.2078,2803.6,2803.5,0.71329]
[1739806341931,3.2078,2804.0,2803.9,0.71318]
[1739806342430,3.2078,2804.6,2804.5,0.71303]
[1739806342730,3.2078,2804.6,2804.4,3.411]
[1739806342926,3.2078,2804.6,2804.5,0.77944626]
[1739806344126,3.2078,2804.6,2804.5,0.06641626]
[1739806344437,9.2078,2804.6,2802.6,3.418]
[1739806344640,3.2078,2803.6,2803.5,0.71329]
[1739806344833,3.2078,2803.6,2803.3,3.426]
[1739806345028,3.2078,2803.9,2803.8,0.71321]
[1739806345235,3.2078,2803.9,2803.8,4.14021]
[1739806345537,3.2078,2803.9,2803.8,3.4602186]
[1739806345731,3.2078,2803.9,2803.8,4.1734286]
[1739806346132,3.2078,2804.2,2803.8,3.4602186]
[1739806346439,3.2078,2804.2,2804.1,0.71313]
[1739806347131,0.00535141,2804.8,2804.0,0.0332186]
[1739806347132,3.2078,2804.6,2804.5,0.71303]
[1739806347332,3.2078,2804.6,2804.5,3.432]
[1739806347532,3.2078,2804.6,2804.5,4.1782486]
[1739806347934,0.00535141,2804.8,2804.7,0.71298]
[1739806348437,3.2078,2804.0,2802.0,0.27789388]